[Event "LEM Sachsen-Anhalt Women Masters 2024"]
[Site "Merseburg"]
[Date "2024.02.08"]
[Round "1.1"]
[White "Voigt, Anastasia"]
[Black "Roessling, Laura Marie"]
[Result "1-0"]
[ECO "C54"]
[WhiteElo "1880"]
[BlackElo "1232"]
[Annotator "NA RC"]
[PlyCount "53"]
[EventDate "2024.02.01"]
[EventType "tourn"]
[EventCountry "GER"]
[SourceTitle "playchess.com"]
[Source "ChessBase"]
[SourceQuality "1"]
[TimeControl "40/5400+30:1800+30"]

1. e4 {[%emt 0:00:02]} e5 {[%emt 0:00:08]} 2. Nf3 {[%emt 0:00:04]} Nc6 {[%emt 0:00:11]} 3. Bc4 {[%emt 0:00:06]} Bc5 {[%emt 0:00:08]} 4. c3 {[%emt 0:00:05]} Nf6 {[%emt 0:00:12]} 5. d3 {[%emt 0:00:04]} h6 {[%emt 0:03:37]} 6. O-O {[%emt 0:03:20]} d6 {[%emt 0:05:59]} 7. Nbd2 {[%emt 0:00:32]} O-O {[%emt 0:01:51]} 8. h3 {[%emt 0:00:57]} Be6 {[%emt 0:07:14]} 9. Re1 {[%emt 0:02:32]} Qd7 {[%emt 0:05:33]} 10. Bb3 {[%emt 0:01:44]} Bxh3 {[%emt 0:19:22]} 11. gxh3 {[%emt 0:33:06]} Qxh3 {[%emt 0:01:25]} 12. d4 {[%emt 0:09:00]} exd4 {[%emt 0:05:05]} 13. Nxd4 {[%emt 0:04:53]} Nxd4 {[%emt 0:12:37]} 14. cxd4 {[%emt 0:01:11]} Bxd4 {[%emt 0:01:10]} 15. Qf3 {[%emt 0:05:40]} Qh4 {[%emt 0:02:44]} 16. Nf1 {[%emt 0:10:55]} Ng4 {[%emt 0:07:43]} 17. Re2 {[%emt 0:06:57]} Bxf2+ {[%emt 0:02:43]} 18. Rxf2 {[%emt 0:01:20]} Nxf2 {[%emt 0:00:13]} 19. Qxf2 {[%emt 0:00:33]} Qxe4 {[%emt 0:01:04]} 20. Ng3 {[%emt 0:03:32]} Qg4 {[%emt 0:03:10]} 21. Be3 {[%emt 0:02:30]} Kh8 {[%emt 0:05:46]} 22. Rf1 {[%emt 0:04:47]} Qg6 {[%emt 0:02:36]} 23. Qg2 {[%emt 0:02:24]} a6 {[%emt 0:03:01]} 24. Bc2 {[%emt 0:03:18]} Qe6 {[%emt 0:04:36]} 25. Bd4 {[%emt 0:00:11]} f6 {[%emt 0:01:18]} 26. Nh5 {[%emt 0:02:12]} Qe7 {[%emt 0:01:39]} 27. Qg6 {[%emt 0:00:36]} 1-0

[Event "LEM Sachsen-Anhalt Women Masters 2024"]
[Site "Merseburg"]
[Date "2024.02.08"]
[Round "1.2"]
[White "Eue, Vicky"]
[Black "Safonova, Valeria"]
[Result "1-0"]
[ECO "B50"]
[WhiteElo "1685"]
[BlackElo "1761"]
[Annotator "NA RC"]
[PlyCount "81"]
[EventDate "2024.02.01"]
[EventType "tourn"]
[EventCountry "GER"]
[SourceTitle "playchess.com"]
[Source "ChessBase"]
[SourceQuality "1"]
[TimeControl "40/5400+30:1800+30"]

1. e4 {[%emt 0:00:15]} c5 {[%emt 0:00:06]} 2. Nf3 {[%emt 0:01:05]} d6 {[%emt 0:00:07]} 3. c3 {[%emt 0:00:41]} Nf6 {[%emt 0:01:22]} 4. h3 {[%emt 0:06:27]} e6 {[%emt 0:02:12]} 5. Bd3 {[%emt 0:05:57]} Be7 {[%emt 0:05:25]} 6. Bc2 {[%emt 0:02:26]} Nc6 {[%emt 0:05:20]} 7. d4 {[%emt 0:00:26]} cxd4 {[%emt 0:05:43]} 8. Nxd4 {[%emt 0:07:20]} Bd7 {[%emt 0:07:37]} 9. Be3 {[%emt 0:03:27]} Nxd4 {[%emt 0:10:55]} 10. Qxd4 {[%emt 0:02:24]} e5 {[%emt 0:03:36]} 11. Qd3 {[%emt 0:00:56]} Bc6 {[%emt 0:01:36]} 12. f3 {[%emt 0:01:03]} Nh5 {[%emt 0:10:12]} 13. O-O {[%emt 0:00:42]} Bg5 {[%emt 0:03:34]} 14. Na3 {[%emt 0:04:53]} Bxe3+ {[%emt 0:00:44]} 15. Qxe3 {[%emt 0:00:08]} Nf4 {[%emt 0:00:52]} 16. Kh2 {[%emt 0:03:36]} Qf6 {[%emt 0:04:26]} 17. g3 {[%emt 0:00:57]} Ng6 {[%emt 0:05:02]} 18. Rad1 {[%emt 0:01:30]} O-O {[%emt 0:01:11]} 19. h4 {[%emt 0:00:55]} Ne7 {[%emt 0:10:48]} 20. f4 {[%emt 0:02:26]} d5 {[%emt 0:07:11]} 21. exd5 {[%emt 0:07:12]} Nxd5 {[%emt 0:00:08]} 22. Qe4 {[%emt 0:00:06]} g6 {[%emt 0:02:08]} 23. fxe5 {[%emt 0:00:27]} Qe7 {[%emt 0:00:08]} 24. Qe2 {[%emt 0:05:39]} Rae8 {[%emt 0:06:44]} 25. Rfe1 {[%emt 0:00:19]} Nxc3 {[%emt 0:01:02]} 26. bxc3 {[%emt 0:00:30]} Qxa3 {[%emt 0:00:02]} 27. Bb3 {[%emt 0:00:30]} Qe7 {[%emt 0:01:16]} 28. h5 {[%emt 0:00:44]} Qg5 {[%emt 0:01:03]} 29. e6 {[%emt 0:02:18]} fxe6 {[%emt 0:00:49]} 30. Bxe6+ {[%emt 0:00:27]} Kg7 {[%emt 0:00:17]} 31. Qe5+ {[%emt 0:04:22]} Qxe5 {[%emt 0:00:02]} 32. Rxe5 {[%emt 0:00:10]} Rf2+ {[%emt 0:00:13]} 33. Kh3 {[%emt 0:00:15]} Kf6 {[%emt 0:02:47]} 34. Rde1 {[%emt 0:00:16]} Bg2+ {[%emt 0:00:27]} 35. Kh4 {[%emt 0:01:46]} Bf3 {[%emt 0:00:40]} 36. g4 {[%emt 0:01:05]} Bd5 {[%emt 0:01:37]} 37. g5+ {[%emt 0:00:29]} Kg7 {[%emt 0:00:12]} 38. h6+ {[%emt 0:00:12]} Kf8 {[%emt 0:00:17]} 39. Bxd5 {[%emt 0:00:07]} Rc8 {[%emt 0:00:16]} 40. c4 {[%emt 0:36:02]} Rxa2 {[%emt 0:00:11]} 41. Rf1+ {[%emt 0:00:00]} 1-0

[Event "LEM Sachsen-Anhalt Women Masters 2024"]
[Site "Merseburg"]
[Date "2024.02.09"]
[Round "2.1"]
[White "Roessling, Laura Marie"]
[Black "Safonova, Valeria"]
[Result "1-0"]
[ECO "B90"]
[WhiteElo "1232"]
[BlackElo "1761"]
[Annotator "NA RC"]
[PlyCount "65"]
[EventDate "2024.02.01"]
[EventType "tourn"]
[EventCountry "GER"]
[SourceTitle "playchess.com"]
[Source "ChessBase"]
[SourceQuality "1"]
[TimeControl "40/5400+30:1800+30"]

1. e4 {[%emt 0:00:03]} c5 {[%emt 0:00:05]} 2. Nf3 {[%emt 0:00:30]} d6 {[%emt 0:00:05]} 3. d4 {[%emt 0:00:34]} cxd4 {[%emt 0:00:04]} 4. Nxd4 {[%emt 0:00:15]} Nf6 {[%emt 0:00:07]} 5. Nc3 {[%emt 0:02:32]} a6 {[%emt 0:00:04]} 6. Qf3 {[%emt 0:01:59]} Qc7 {[%emt 0:02:00]} 7. Be3 {[%emt 0:04:49]} b5 {[%emt 0:03:14]} 8. a3 {[%emt 0:06:51]} e6 {[%emt 0:02:49]} 9. Bd3 {[%emt 0:09:16]} Bb7 {[%emt 0:03:45]} 10. O-O {[%emt 0:10:20]} Nbd7 {[%emt 0:01:06]} 11. Nb3 {[%emt 0:06:02]} Ne5 {[%emt 0:16:57]} 12. Qe2 {[%emt 0:04:15]} Nc4 {[%emt 0:01:37]} 13. Bxc4 {[%emt 0:02:54]} bxc4 {[%emt 0:00:07]} 14. Nd2 {[%emt 0:00:57]} Rc8 {[%emt 0:00:34]} 15. f4 {[%emt 0:04:37]} Be7 {[%emt 0:00:14]} 16. f5 {[%emt 0:04:18]} exf5 {[%emt 0:05:54]} 17. Rxf5 {[%emt 0:05:27]} O-O {[%emt 0:02:13]} 18. Raf1 {[%emt 0:01:48]} Ba8 {[%emt 0:15:38]} 19. Rxf6 {[%emt 0:05:38]} Bxf6 {[%emt 0:00:26]} 20. Rxf6 {[%emt 0:00:18]} Qe7 {[%emt 0:29:42]} 21. Bd4 {[%emt 0:04:09]} d5 {[%emt 0:10:46]} 22. Qg4 {[%emt 0:02:26]} g6 {[%emt 0:00:02]} 23. Qg5 {[%emt 0:01:37]} Rfe8 {[%emt 0:00:45]} 24. Qh6 {[%emt 0:00:30]} dxe4 {[%emt 0:01:09]} 25. Rxa6 {[%emt 0:06:20]} Qf8 {[%emt 0:00:01]} 26. Qg5 {[%emt 0:00:53]} Qe7 {[%emt 0:02:08]} 27. Qh6 {[%emt 0:02:34]} Qf8 {[%emt 0:00:03]} 28. Qf4 {[%emt 0:00:33]} f5 {[%emt 0:01:29]} 29. Rf6 {[%emt 0:01:24]} Qe7 {[%emt 0:00:03]} 30. Qg5 {[%emt 0:00:19]} Rc6 {[%emt 0:01:05]} 31. Nd5 {[%emt 0:00:41]} Qd8 {[%emt 0:00:50]} 32. Qh6 {[%emt 0:01:10]} Qxd5 {[%emt 0:00:11]} 33. Rf8+ {[%emt 0:00:12]} 1-0

[Event "LEM Sachsen-Anhalt Women Masters 2024"]
[Site "Merseburg"]
[Date "2024.02.09"]
[Round "2.2"]
[White "Voigt, Anastasia"]
[Black "Eue, Vicky"]
[Result "1-0"]
[ECO "B01"]
[WhiteElo "1880"]
[BlackElo "1685"]
[Annotator "NA RC"]
[PlyCount "81"]
[EventDate "2024.02.01"]
[EventType "tourn"]
[EventCountry "GER"]
[SourceTitle "playchess.com"]
[Source "ChessBase"]
[SourceQuality "1"]
[TimeControl "40/5400+30:1800+30"]

1. e4 {[%emt 1:31:00]} d5 {[%emt 0:02:58]} 2. exd5 {[%emt 0:00:00]} Qxd5 {[%emt 0:00:03]} 3. Nc3 {[%emt 0:00:00]} Qd6 {[%emt 0:00:18]} 4. d4 {[%emt 0:00:00]} Nf6 {[%emt 0:00:06]} 5. Nf3 {[%emt 0:00:00]} a6 {[%emt 0:00:07]} 6. Bd3 {[%emt 0:00:00] B01: Scandinavian Defence.} Nc6 {[%emt 0:00:47]} 7. O-O {[%emt 0:00:00]} Bg4 {[%emt 0:00:20]} 8. Ne4 {[%emt 0:00:00]} Nxe4 {[%emt 0:02:55]} 9. Bxe4 {[%emt 0:00:00]} f5 {[%emt 0:01:19]} 10. Bxc6+ $16 {[%emt 0:00:00]} Qxc6 {[%emt 0:00:10]} 11. c3 {[%emt 0:00:00]} ({Better is} 11. d5 $14 Qf6 12. Re1) 11... Bxf3 {[%emt 0:00:11]} 12. Qxf3 {[%emt 0:00:00]} Qxf3 {[%emt 0:00:05]} 13. gxf3 {[%emt 0:00:00]} O-O-O {[%emt 0:01:41]} 14. Re1 {[%emt 0:00:00]} h6 {[%emt 0:00:45]} 15. Re5 {[%emt 0:00:00]} g6 {[%emt 0:00:39]} 16. Bd2 {[%emt 0:00:00]} Rd6 {[%emt 0:01:38]} 17. Rae1 {[%emt 0:00:00]} Kd7 {[%emt 0:00:04]} 18. d5 {[%emt 0:00:00]} b5 {[%emt 0:02:55]} 19. b3 {[%emt 0:00:00]} c5 {[%emt 0:04:23]} 20. c4 {[%emt 0:00:00]} Rh7 {[%emt 0:00:44]} 21. R5e2 {[%emt 0:00:00]} g5 {[%emt 0:00:39] [#]} 22. Be3 $1 {[%emt 0:00:00]} Rf7 {[%emt 0:06:29]} 23. Bxc5 {[%emt 0:00:00]} Rg6 {[%emt 0:00:05]} 24. Re6 {[%emt 0:00:00]} Rff6 {[%emt 0:01:40]} 25. R6e5 {[%emt 0:00:00]} Rf7 {[%emt 0:01:03]} 26. R1e2 {[%emt 0:00:00]} g4 {[%emt 0:00:17]} 27. f4 {[%emt 0:00:00]} h5 {[%emt 0:00:32]} 28. Kf1 {[%emt 0:00:00]} h4 {[%emt 0:00:13]} 29. R2e3 {[%emt 0:00:25]} Rh6 {[%emt 0:04:55]} 30. Rd3 {[%emt 0:07:20]} Bg7 {[%emt 0:00:27]} 31. Re1 {[%emt 0:00:25]} Rg6 {[%emt 0:04:50]} 32. Bd4 {[%emt 0:03:04]} Bh6 {[%emt 0:00:12]} 33. Be5 {[%emt 0:00:17]} Bg7 {[%emt 0:04:26]} 34. c5 {[%emt 0:00:16]} g3 {[%emt 0:02:32]} 35. fxg3 {[%emt 0:00:07]} hxg3 {[%emt 0:00:10]} 36. Rxg3 {[%emt 0:00:48]} Rxg3 {[%emt 0:00:20]} 37. hxg3 {[%emt 0:00:06]} Bf8 {[%emt 0:00:46]} 38. b4 {[%emt 0:01:00]} Rh7 {[%emt 0:02:33]} 39. Kg2 {[%emt 0:00:17]} Bg7 {[%emt 0:01:47]} 40. Bxg7 {[%emt 0:00:26]} Rxg7 {[%emt 0:00:04]} 41. Re6 {[%emt 0:30:14]} 1-0

[Event "LEM Sachsen-Anhalt Women Masters 2024"]
[Site "Merseburg"]
[Date "2024.02.09"]
[Round "3.1"]
[White "Eue, Vicky"]
[Black "Roessling, Laura Marie"]
[Result "1-0"]
[ECO "C78"]
[WhiteElo "1685"]
[BlackElo "1232"]
[Annotator "NA RC"]
[PlyCount "63"]
[EventDate "2024.02.01"]
[EventType "tourn"]
[EventCountry "GER"]
[SourceTitle "playchess.com"]
[Source "ChessBase"]
[SourceQuality "1"]
[TimeControl "40/5400+30:1800+30"]

1. e4 {[%emt 0:00:02]} e5 {[%emt 0:00:12]} 2. Nf3 {[%emt 0:00:07]} Nc6 {[%emt 0:00:17]} 3. Bb5 {[%emt 0:00:06]} a6 {[%emt 0:00:20]} 4. Ba4 {[%emt 0:00:04]} Nf6 {[%emt 0:00:57]} 5. O-O {[%emt 0:00:53]} b5 {[%emt 0:00:32]} 6. Bb3 {[%emt 0:00:05]} Nxe4 {[%emt 0:01:27]} 7. Re1 {[%emt 0:00:14]} Nc5 {[%emt 0:00:18]} 8. Nxe5 {[%emt 0:00:20]} Nxe5 {[%emt 0:00:21]} 9. Rxe5+ {[%emt 0:00:05]} Be7 {[%emt 0:00:17]} 10. Qe2 {[%emt 0:09:24]} Ne6 {[%emt 0:00:24]} 11. Nc3 {[%emt 0:00:57]} O-O {[%emt 0:01:39]} 12. Qe4 {[%emt 0:03:32]} Rb8 {[%emt 0:02:00]} 13. Bxe6 {[%emt 0:12:46]} fxe6 {[%emt 0:01:44]} 14. d4 {[%emt 0:00:41]} Rf6 {[%emt 0:04:41]} 15. Bg5 {[%emt 0:03:09]} Rg6 {[%emt 0:01:42]} 16. Bxe7 {[%emt 0:00:27]} Qxe7 {[%emt 0:00:15]} 17. Rd1 {[%emt 0:07:40]} Qf7 {[%emt 0:06:13]} 18. Rd3 {[%emt 0:03:05]} d6 {[%emt 0:00:59]} 19. Rf3 {[%emt 0:00:10]} Qxf3 {[%emt 0:02:04]} 20. Qxf3 {[%emt 0:00:04]} dxe5 {[%emt 0:00:15]} 21. Qc6 {[%emt 0:01:18]} Kf8 {[%emt 0:03:02]} 22. Qxc7 {[%emt 0:00:17]} Ra8 {[%emt 0:03:39]} 23. Ne4 {[%emt 0:01:06]} Bd7 {[%emt 0:08:24]} 24. Qxd7 {[%emt 0:03:36]} exd4 {[%emt 0:00:48]} 25. Nd6 {[%emt 0:01:03]} Rf6 {[%emt 0:00:18]} 26. g4 {[%emt 0:02:33]} h6 {[%emt 0:00:58]} 27. h4 {[%emt 0:00:50]} b4 {[%emt 0:01:03]} 28. Kg2 {[%emt 0:01:29]} Kg8 {[%emt 0:00:37]} 29. g5 {[%emt 0:01:10]} hxg5 {[%emt 0:00:20]} 30. Ne8 {[%emt 0:00:56]} Rf7 {[%emt 0:00:33]} 31. Qxe6 {[%emt 0:00:11]} gxh4 {[%emt 0:00:15]} 32. Nd6 {[%emt 0:00:10]} 1-0

[Event "LEM Sachsen-Anhalt Women Masters 2024"]
[Site "Merseburg"]
[Date "2024.02.09"]
[Round "3.2"]
[White "Safonova, Valeria"]
[Black "Voigt, Anastasia"]
[Result "0-1"]
[ECO "C77"]
[WhiteElo "1761"]
[BlackElo "1880"]
[Annotator "NA RC"]
[PlyCount "116"]
[EventDate "2024.02.01"]
[EventType "tourn"]
[EventCountry "GER"]
[SourceTitle "playchess.com"]
[Source "ChessBase"]
[SourceQuality "1"]
[TimeControl "40/5400+30:1800+30"]

1. e4 {[%emt 0:00:02]} e5 {[%emt 0:00:05]} 2. Nf3 {[%emt 0:00:04]} Nc6 {[%emt 0:00:04]} 3. Bb5 {[%emt 0:00:04]} a6 {[%emt 0:00:07]} 4. Ba4 {[%emt 0:00:03]} Nf6 {[%emt 0:00:09]} 5. d3 {[%emt 0:00:05]} d6 {[%emt 0:00:14]} 6. c3 {[%emt 0:00:20]} g6 {[%emt 0:00:31]} 7. O-O {[%emt 0:00:14]} Bg7 {[%emt 0:00:09]} 8. h3 {[%emt 0:00:52]} O-O {[%emt 0:00:29]} 9. Be3 {[%emt 0:00:35]} b5 {[%emt 0:00:51]} 10. Bc2 {[%emt 0:00:06]} Bb7 {[%emt 0:01:31]} 11. Qc1 {[%emt 0:04:41]} Re8 {[%emt 0:07:30]} 12. Bh6 {[%emt 0:04:42]} Bh8 {[%emt 0:13:02]} 13. Nbd2 {[%emt 0:01:50]} Nh5 {[%emt 0:03:10]} 14. a4 $14 {[%emt 0:06:57]} Nf4 {[%emt 0:01:37]} 15. Re1 {[%emt 0:06:08]} b4 {[%emt 0:02:56]} 16. Nf1 {[%emt 0:13:20]} a5 {[%emt 0:05:11]} 17. Bxf4 {[%emt 0:06:06]} exf4 {[%emt 0:00:09]} 18. d4 {[%emt 0:01:23]} Qf6 {[%emt 0:06:05]} 19. Bb3 {[%emt 0:04:02]} Bg7 {[%emt 0:04:20]} 20. Bd5 {[%emt 0:03:02]} Rab8 {[%emt 0:05:24]} 21. N1d2 {[%emt 0:03:37]} Nd8 {[%emt 0:05:08]} 22. Bxb7 {[%emt 0:05:40]} Rxb7 {[%emt 0:01:07]} 23. e5 {[%emt 0:01:14]} dxe5 {[%emt 0:01:35]} 24. Nxe5 {[%emt 0:00:13]} Qf5 {[%emt 0:12:24]} 25. Ndc4 {[%emt 0:02:56]} Bxe5 {[%emt 0:03:12]} 26. Nxe5 {[%emt 0:00:10]} Ne6 {[%emt 0:06:48]} 27. Ng4 {[%emt 0:01:42]} Kg7 {[%emt 0:04:21]} 28. Re5 {[%emt 0:03:39]} Qd3 {[%emt 0:00:12]} 29. d5 {[%emt 0:02:23]} h5 {[%emt 0:02:12]} 30. Nh2 {[%emt 0:01:29]} bxc3 {[%emt 0:03:39]} 31. bxc3 {[%emt 0:00:28]} Reb8 {[%emt 0:01:23]} 32. Re1 {[%emt 0:05:31]} Qxd5 {[%emt 0:00:38]} 33. c4 {[%emt 0:00:05]} Qd4 {[%emt 0:01:11]} 34. Nf3 {[%emt 0:00:14]} Qb2 {[%emt 0:00:46]} 35. Ne5 {[%emt 0:03:34]} Qxc1 {[%emt 0:00:43]} 36. Raxc1 {[%emt 0:00:03]} c5 {[%emt 0:00:58]} 37. Nc6 {[%emt 0:05:36]} Ra8 {[%emt 0:00:26]} 38. Rb1 {[%emt 0:01:26]} Rc7 {[%emt 0:00:30]} 39. Ne5 {[%emt 0:00:41]} Raa7 {[%emt 0:03:47]} 40. Rb6 {[%emt 0:02:19]} Nd4 {[%emt 0:01:49]} 41. Nd3 {[%emt 0:33:12]} f3 {[%emt 0:16:38]} 42. Re5 {[%emt 0:00:00]} Ne2+ {[%emt 0:01:34]} 43. Kh2 {[%emt 0:00:00]} Nc3 {[%emt 0:00:55]} 44. Nxc5 {[%emt 0:00:00]} Rxc5 {[%emt 0:01:34]} 45. Rxc5 {[%emt 0:00:00]} Nxa4 {[%emt 0:00:08]} 46. Rcb5 {[%emt 0:00:00]} Nxb6 {[%emt 0:00:08]} 47. Rxb6 {[%emt 0:00:00]} a4 {[%emt 0:01:51]} 48. c5 {[%emt 0:00:00]} a3 {[%emt 0:01:04]} 49. Rb1 {[%emt 0:00:00]} a2 {[%emt 0:00:51]} 50. Ra1 {[%emt 0:00:00]} Kf6 {[%emt 0:00:35]} 51. c6 {[%emt 0:00:00]} Ke7 {[%emt 0:00:10]} 52. c7 {[%emt 0:00:00]} Kd7 {[%emt 0:00:11]} 53. c8=Q+ {[%emt 0:00:00]} Kxc8 {[%emt 0:00:04]} 54. gxf3 {[%emt 0:00:00]} Kb7 {[%emt 0:00:29]} 55. Kg2 {[%emt 0:00:00]} Kb6 {[%emt 0:00:05]} 56. Kf1 {[%emt 0:00:00]} Kb5 {[%emt 0:00:13]} 57. Ke2 {[%emt 0:00:00]} Kb4 {[%emt 0:00:07]} 58. Kd2 {[%emt 0:00:00]} Kb3 {[%emt 0:00:14]} 0-1

[Event "LEM Sachsen-Anhalt Women Masters 2024"]
[Site "Merseburg"]
[Date "2024.02.10"]
[Round "4.1"]
[White "Roessling, Laura Marie"]
[Black "Voigt, Anastasia"]
[Result "0-1"]
[ECO "C54"]
[WhiteElo "1232"]
[BlackElo "1880"]
[Annotator "NA RC"]
[PlyCount "120"]
[EventDate "2024.02.01"]
[EventType "tourn"]
[EventCountry "GER"]
[SourceTitle "playchess.com"]
[Source "ChessBase"]
[SourceQuality "1"]
[TimeControl "40/5400+30:1800+30"]

1. e4 {[%emt 0:00:03]} e5 {[%emt 0:00:04]} 2. Nf3 {[%emt 0:00:08]} Nc6 {[%emt 0:00:04]} 3. Bc4 {[%emt 0:00:12]} Bc5 {[%emt 0:00:04]} 4. c3 {[%emt 0:00:27]} Nf6 {[%emt 0:00:09]} 5. d4 {[%emt 0:00:09]} exd4 {[%emt 0:00:04]} 6. e5 {[%emt 0:00:21]} d5 $1 {[%emt 0:00:08]} 7. Bb5 {[%emt 0:00:09]} Ne4 {[%emt 0:00:09]} 8. cxd4 {[%emt 0:00:20]} Bb6 {[%emt 0:00:40]} 9. Nc3 {[%emt 0:01:03]} O-O {[%emt 0:00:19]} 10. Be3 {[%emt 0:00:33]} Bg4 {[%emt 0:00:32]} 11. h3 {[%emt 0:00:26]} Bh5 {[%emt 0:00:08]} 12. Qc2 {[%emt 0:00:16]} Nxc3 {[%emt 0:00:40]} 13. bxc3 {[%emt 0:11:18]} f6 {[%emt 0:00:13]} 14. Be2 {[%emt 0:14:04] [#]} (14. exf6 $11 {keeps the balance.} Qxf6 15. Be2) 14... Bxf3 $1 {[%emt 0:01:31]} 15. Bxf3 $17 {[%emt 0:01:19]} fxe5 {[%emt 0:00:25]} 16. Qb3 {[%emt 0:07:06]} exd4 {[%emt 0:08:17]} 17. cxd4 {[%emt 0:05:38]} Kh8 {[%emt 0:10:33]} 18. O-O {[%emt 0:03:03]} Bxd4 {[%emt 0:27:42]} 19. Rad1 {[%emt 0:02:34]} Bxe3 {[%emt 0:01:37]} 20. fxe3 {[%emt 0:01:10]} Na5 {[%emt 0:20:45]} 21. Qc3 {[%emt 0:03:39]} c6 {[%emt 0:00:32]} 22. Kh1 {[%emt 0:03:28]} Nc4 {[%emt 0:10:43]} 23. Be2 {[%emt 0:04:10]} Nd6 {[%emt 0:03:15]} 24. Bd3 {[%emt 0:03:20]} Qe7 {[%emt 0:00:45]} 25. Bc2 {[%emt 0:05:00]} Kg8 {[%emt 0:04:20]} 26. Rf4 {[%emt 0:01:44]} Rxf4 {[%emt 0:00:53]} 27. exf4 {[%emt 0:00:07]} Re8 {[%emt 0:00:46]} 28. Rf1 {[%emt 0:01:31]} Qe2 {[%emt 0:01:22]} 29. Rd1 {[%emt 0:01:26]} Nc4 {[%emt 0:00:57]} 30. Bb3 {[%emt 0:02:13]} Ne3 {[%emt 0:01:46]} 31. Rg1 {[%emt 0:01:34]} Nf5 {[%emt 0:01:10]} 32. Bc2 {[%emt 0:01:42]} Nd6 {[%emt 0:00:58]} 33. Qb3 {[%emt 0:01:31]} Qe3 {[%emt 0:01:03]} 34. Qb4 {[%emt 0:01:07]} Qe7 {[%emt 0:00:59]} 35. Qd4 {[%emt 0:01:22]} a6 {[%emt 0:00:27]} 36. Rf1 {[%emt 0:03:05]} Qe3 {[%emt 0:00:47]} 37. Qa1 {[%emt 0:01:21]} Nc4 {[%emt 0:01:12]} 38. f5 {[%emt 0:02:53]} Qe5 {[%emt 0:00:28]} 39. Qc1 {[%emt 0:00:50]} Ne3 {[%emt 0:01:12]} 40. Re1 {[%emt 0:00:50]} Qg3 {[%emt 0:01:18]} 41. Re2 {[%emt 0:31:00]} Re5 {[%emt 0:05:22]} 42. Bd3 {[%emt 0:00:00]} Nxf5 {[%emt 0:06:16]} 43. Rxe5 {[%emt 0:00:00]} Qxe5 {[%emt 0:00:09]} 44. Qb1 {[%emt 0:00:00]} Ng3+ {[%emt 0:04:03]} 45. Kg1 {[%emt 0:00:00]} g6 {[%emt 0:02:35]} 46. Bc2 {[%emt 0:00:00]} b5 {[%emt 0:02:19]} 47. Bd3 {[%emt 0:00:00]} c5 {[%emt 0:00:49]} 48. a4 {[%emt 0:00:00]} c4 {[%emt 0:00:44]} 49. Bxg6 {[%emt 0:00:00]} hxg6 {[%emt 0:01:43]} 50. Qxg6+ {[%emt 0:00:00]} Qg7 {[%emt 0:01:23]} 51. Qe6+ {[%emt 0:00:00]} Kh7 {[%emt 0:00:31]} 52. Qxd5 {[%emt 0:00:00]} Qa1+ {[%emt 0:01:19]} 53. Kf2 {[%emt 0:00:00]} Nh1+ {[%emt 0:00:55]} 54. Kf3 {[%emt 0:00:00]} Qf1+ {[%emt 0:01:13]} 55. Kg4 {[%emt 0:00:00]} Qe2+ {[%emt 0:01:04]} 56. Kg5 {[%emt 0:00:00]} Qe7+ {[%emt 0:01:19]} 57. Kf4 {[%emt 0:00:00]} Qh4+ {[%emt 0:02:02]} 58. Ke5 {[%emt 0:00:00]} Qg5+ {[%emt 0:00:15]} 59. Kd6 {[%emt 0:00:00]} Qxd5+ {[%emt 0:00:23]} 60. Kxd5 {[%emt 0:00:00]} c3 {[%emt 0:07:09]} 0-1

[Event "LEM Sachsen-Anhalt Women Masters 2024"]
[Site "Merseburg"]
[Date "2024.02.10"]
[Round "4.2"]
[White "Safonova, Valeria"]
[Black "Eue, Vicky"]
[Result "1-0"]
[ECO "A45"]
[WhiteElo "1761"]
[BlackElo "1685"]
[Annotator "NA RC"]
[PlyCount "59"]
[EventDate "2024.02.01"]
[EventType "tourn"]
[EventCountry "GER"]
[SourceTitle "playchess.com"]
[Source "ChessBase"]
[SourceQuality "1"]
[TimeControl "40/5400+30:1800+30"]

1. d4 {[%emt 0:00:02]} Nf6 {[%emt 0:00:09]} 2. Bg5 {[%emt 0:00:05]} e6 {[%emt 0:00:16]} 3. e4 {[%emt 0:00:11]} Be7 {[%emt 0:00:16]} 4. e5 {[%emt 0:00:07]} Nd5 {[%emt 0:00:17]} 5. Bxe7 {[%emt 0:00:09]} Qxe7 {[%emt 0:00:15]} 6. c4 {[%emt 0:00:12]} Nb6 {[%emt 0:00:47]} 7. Nd2 {[%emt 0:02:38]} d6 {[%emt 0:00:32]} 8. f4 {[%emt 0:05:58]} dxe5 {[%emt 0:00:18]} 9. dxe5 {[%emt 0:01:44]} Nc6 {[%emt 0:00:34]} 10. Ngf3 {[%emt 0:02:14]} Bd7 {[%emt 0:00:57]} 11. Bd3 {[%emt 0:03:24]} Nb4 {[%emt 0:02:06]} 12. Be4 {[%emt 0:04:55]} Bc6 {[%emt 0:00:20]} 13. Qe2 {[%emt 0:04:47]} Rd8 {[%emt 0:02:09]} 14. Bxc6+ {[%emt 0:06:24]} bxc6 {[%emt 0:03:18]} 15. O-O {[%emt 0:02:22]} Nd3 {[%emt 0:02:20]} 16. b3 {[%emt 0:04:32]} Qc5+ {[%emt 0:01:30]} 17. Kh1 {[%emt 0:00:05]} Nxf4 {[%emt 0:11:10]} 18. Qe4 {[%emt 0:00:08]} Nd3 {[%emt 0:04:00]} 19. Qe2 {[%emt 0:00:21]} Nc8 {[%emt 0:12:12]} 20. Ne4 {[%emt 0:03:53]} Nf4 {[%emt 0:18:52]} 21. Qc2 {[%emt 0:01:46]} Qe3 {[%emt 0:04:26]} 22. Rae1 {[%emt 0:02:18]} Qd3 {[%emt 0:00:24]} 23. Qf2 {[%emt 0:01:46]} O-O {[%emt 0:07:46]} 24. Re3 {[%emt 0:09:17]} Qd7 {[%emt 0:02:31]} 25. Qg3 {[%emt 0:02:43]} Nh5 {[%emt 0:02:58]} 26. Nf6+ {[%emt 0:05:05]} Nxf6 {[%emt 0:00:06]} 27. exf6 {[%emt 0:00:05]} g6 {[%emt 0:00:11]} 28. Qg5 {[%emt 0:01:08]} Nd6 {[%emt 0:02:04]} 29. Ne5 {[%emt 0:08:23]} Qe8 {[%emt 0:03:55]} 30. g4 {[%emt 0:03:41]} 1-0